bitfinex/quotes_ETHUSD_20251124
["timestamp","ask_amount","ask_price","bid_price","bid_amount"]
[1763999701097,0.1,2845.5,2844.2,0.4633]
[1763999701267,0.42825462,2845.5,2844.2,0.4633]
[1763999701472,0.1,2845.5,2844.2,0.4633]
[1763999701672,0.228,2845.4,2844.2,0.4633]
[1763999702072,0.72559411,2845.2,2844.1,0.1961]
[1763999702268,0.93362051,2845.1,2844.1,0.6594]
[1763999702490,0.1,2844.8,2844.1,0.6594]
[1763999702667,0.1,2844.8,2844.1,0.1971]
[1763999702872,0.6775,2845.0,2844.1,0.6604]
[1763999703080,0.83362051,2845.1,2844.1,0.6604]
[1763999703284,0.1875,2845.4,2844.2,0.4633]
[1763999703498,0.228,2845.3,2844.1,0.1971]
[1763999703659,0.228,2845.2,2844.1,0.6604]
[1763999703994,0.1,2845.1,2844.2,0.4633]
[1763999704313,0.1875,2845.4,2844.2,0.4633]
[1763999704483,0.228,2845.3,2844.2,0.4633]
[1763999704864,0.1875,2845.4,2844.2,0.4633]
[1763999705365,0.1875,2845.9,2844.3,0.405504]
[1763999705560,0.228,2845.8,2844.4,0.4633]
[1763999705887,0.228,2845.8,2844.1,0.1971]
[1763999705888,0.1,2845.1,2844.1,0.1971]
[1763999706062,0.72559411,2845.3,2844.1,0.1971]
[1763999706063,0.72559411,2845.3,2844.1,0.6604]
[1763999706260,0.228,2845.0,2844.1,0.6604]
[1763999706463,0.1,2845.1,2844.1,0.1971]
[1763999706664,0.228,2845.0,2844.2,0.4633]
[1763999706888,0.77462051,2845.2,2844.2,0.4633]
[1763999707086,0.228,2844.9,2844.2,0.4633]
[1763999708074,0.228,2844.9,2844.1,0.1971]
[1763999708075,0.818,2844.9,2844.1,0.1971]
[1763999708887,0.49,2844.8,2844.1,0.001]
[1763999709286,0.49,2844.8,2844.1,0.1971]
[1763999709644,0.228,2844.7,2844.2,0.4633]
[1763999709816,0.228,2844.7,2844.1,0.1971]
[1763999710385,0.228,2844.7,2844.1,0.001]
[1763999710585,0.1,2844.6,2844.1,0.001]
[1763999711133,0.59,2844.6,2844.1,0.001]
[1763999711646,0.2569,2844.2,2844.1,0.001]
[1763999712205,0.7446,2844.2,2844.1,0.001]
[1763999712344,0.8446,2844.2,2844.1,0.001]
[1763999712543,0.2569,2844.2,2844.1,0.001]
[1763999712860,0.9726,2844.2,2844.1,0.001]
[1763999713207,1.0726,2844.2,2844.1,0.001]
[1763999713718,0.9726,2844.2,2844.1,0.001]
[1763999714244,0.2569,2844.2,2844.1,0.001]
[1763999714446,0.228,2844.2,2844.1,0.001]
[1763999715116,0.228,2844.2,2844.1,0.6167]
[1763999715313,0.2569,2844.2,2844.1,0.001]
[1763999715515,1.53137453,2844.2,2844.1,0.001]
[1763999715832,2.32167347,2844.2,2844.1,0.001]
[1763999716055,2.55384082,2844.2,2844.1,0.001]
[1763999716254,2.78284082,2844.2,2844.1,0.001]
[1763999716567,3.51443837,2844.2,2844.1,0.001]
[1763999716866,0.1,2843.4,2842.3,0.6594]
[1763999717174,0.229,2843.3,2842.4,0.56902324]
[1763999717328,0.1006,2843.5,2842.4,0.56902324]
[1763999717534,0.329,2843.4,2842.4,0.56902324]
[1763999717762,0.229,2843.3,2842.4,0.56902324]
[1763999717983,0.229,2843.3,2841.4,0.405504]
[1763999718145,0.59,2843.4,2841.6,2.501248]
[1763999718335,0.229,2843.3,2841.6,2.501248]
[1763999718542,0.1,2843.1,2841.5,0.2982425]
[1763999718738,0.1,2843.1,2841.2,1.1988141]
[1763999718937,0.1,2843.1,2841.3,11.378768]
[1763999718938,0.59,2843.1,2841.3,11.378768]
[1763999719254,0.229,2843.0,2841.3,11.378768]
[1763999719639,0.1006,2843.5,2841.3,0.405504]
[1763999719883,0.1,2843.3,2841.5,0.405504]
[1763999720040,0.5527,2843.5,2841.5,0.405504]
[1763999720041,0.5527,2843.5,2841.7,0.405504]
[1763999720243,0.229,2843.2,2841.7,0.405504]
[1763999720464,0.5527,2843.5,2841.9,0.405504]
[1763999720671,0.229,2843.4,2841.9,0.405504]
[1763999720851,0.229,2843.4,2842.1,0.405504]
[1763999721058,0.6811,2843.4,2842.0,0.2514]
[1763999721579,0.4521,2843.3,2842.0,0.2514]
[1763999721787,0.1,2842.9,2842.0,0.2514]
[1763999721994,0.229,2842.8,2842.0,0.2514]
[1763999722343,1.20316405,2843.4,2842.0,0.2514]
[1763999722586,0.4521,2843.4,2842.0,0.2514]
[1763999722791,0.75134735,2843.7,2843.3,0.0553]
[1763999723091,0.229,2843.8,2843.3,0.0553]
[1763999723449,0.6437,2844.1,2843.3,0.0553]
[1763999723790,0.75150183,2844.4,2843.3,0.3067]
[1763999724083,1.35727746,2845.0,2843.3,0.3067]
[1763999724084,0.229,2844.3,2843.3,0.3067]
[1763999724496,0.75152822,2844.7,2844.2,0.0981]
[1763999724800,0.1006,2845.0,2844.2,0.0981]
[1763999724956,0.229,2844.6,2844.2,0.0981]
[1763999725158,1.30442292,2845.0,2844.2,0.0981]
[1763999725351,0.75172292,2844.9,2844.2,0.0981]
[1763999725581,0.6527,2845.0,2844.2,0.0981]
[1763999725582,0.228,2844.8,2844.2,0.0981]
[1763999725972,0.94140846,2845.3,2844.2,0.3495]
[1763999726185,0.98017928,2845.2,2844.2,0.3495]
[1763999726371,0.228,2845.1,2844.3,0.2514]
[1763999726852,0.002,2845.3,2844.3,0.2514]
[1763999727059,0.228,2845.2,2844.3,0.2514]
[1763999727301,0.002,2845.3,2844.3,0.2514]
[1763999727473,0.228,2845.1,2844.3,0.2514]
[1763999727670,0.228,2845.2,2844.3,0.2514]
[1763999727999,0.0012,2845.3,2844.3,0.2514]
[1763999728355,0.0012,2845.3,2845.2,0.3495]
[1763999728784,0.0012,2845.3,2845.2,0.0981]
[1763999729151,0.0012,2845.3,2844.8,0.2514]
[1763999730495,0.0012,2845.3,2845.2,0.3495]
[1763999730871,0.0012,2845.3,2845.2,0.6009]
[1763999732315,0.0012,2845.3,2845.2,1.006404]
[1763999733834,0.0012,2845.3,2845.2,0.3495]
[1763999734039,0.0012,2845.3,2844.7,0.2514]
[1763999735042,0.0012,2845.3,2845.2,0.0981]
[1763999735239,0.0012,2845.3,2844.7,0.2514]
[1763999735852,0.0012,2845.3,2844.5,0.405504]
[1763999736031,0.0012,2845.3,2844.4,0.2514]
[1763999736540,0.0012,2845.3,2844.2,0.0981]
[1763999736848,0.0012,2845.3,2844.4,0.405504]
[1763999737207,0.0012,2845.3,2844.5,0.2514]
[1763999737427,0.0012,2845.3,2844.6,0.03515432]
[1763999737798,0.0012,2845.3,2844.6,0.2514]
[1763999737999,0.0012,2845.3,2844.3,0.656904]
[1763999738229,0.0012,2845.3,2844.4,0.28655679]
[1763999738479,0.0012,2845.3,2845.2,0.0981]
[1763999739145,0.0012,2845.3,2844.4,0.2514]
[1763999740302,0.0012,2845.3,2845.2,0.3495]
[1763999740714,0.0012,2845.3,2844.5,0.2514]
[1763999740938,0.0012,2845.3,2844.6,0.001]
[1763999741104,0.0012,2845.3,2844.7,0.405504]
[1763999741308,0.0012,2845.3,2844.7,0.656904]
[1763999741531,0.0012,2845.3,2845.2,0.3495]
[1763999742753,0.0012,2845.3,2845.2,0.6009]
[1763999743100,0.0012,2845.3,2844.7,0.656904]
[1763999743618,0.0012,2845.3,2845.2,0.0981]
[1763999744014,0.0012,2845.3,2845.2,0.3495]
[1763999746114,0.0012,2845.3,2845.2,0.6009]
[1763999746847,0.0012,2845.3,2844.8,0.2514]
[1763999747052,0.9515,2845.3,2844.6,0.001]
[1763999747543,0.9506,2845.3,2844.6,0.001]
[1763999748103,0.4994,2845.3,2844.6,0.001]
[1763999748356,0.5902,2844.7,2844.6,0.001]
[1763999748557,1.0414,2844.7,2844.6,0.001]
[1763999748706,1.2694,2844.7,2844.6,0.001]
[1763999748900,0.94060846,2845.3,2844.6,0.001]
[1763999748901,0.1883,2844.9,2844.6,0.001]
[1763999749505,0.6755,2844.9,2844.6,0.001]
[1763999749903,0.4872,2844.8,2844.6,0.001]
[1763999750103,0.1883,2844.9,2844.6,0.001]
[1763999751019,0.4872,2845.1,2844.6,0.001]
[1763999751222,0.228,2845.1,2844.6,0.001]
[1763999751444,0.7152,2845.1,2844.6,0.001]
[1763999752452,0.4872,2845.0,2844.6,0.001]
[1763999752628,0.4916,2844.7,2844.6,0.001]
[1763999753043,0.9788,2844.7,2844.6,0.001]
[1763999754563,0.228,2845.1,2844.6,0.001]
[1763999754745,0.228,2845.0,2844.6,0.001]
[1763999754934,0.55670837,2845.0,2844.6,0.001]
[1763999755118,1.31412469,2845.0,2844.6,0.001]
[1763999755320,1.7451482,2845.0,2844.6,0.001]
[1763999755515,0.228,2844.9,2844.6,0.001]
[1763999755719,0.1984,2845.2,2844.6,0.001]
[1763999756029,0.228,2845.1,2844.6,0.001]
[1763999756366,0.55672408,2845.1,2844.6,0.001]
[1763999756532,0.228,2845.1,2844.6,0.001]
[1763999757132,0.95588707,2845.2,2844.6,0.001]
[1763999757133,0.1984,2845.2,2844.6,0.001]
[1763999757369,0.228,2845.1,2844.6,0.001]
[1763999757532,0.0012,2845.3,2844.6,0.001]
[1763999757853,0.228,2845.2,2844.6,0.001]
[1763999758955,0.228,2845.1,2844.6,0.001]
[1763999759338,0.7152,2845.1,2844.6,0.001]
[1763999759940,0.228,2845.1,2844.6,0.001]
[1763999760144,0.4872,2845.0,2844.6,0.001]
[1763999760545,0.6908,2844.7,2844.6,0.001]
[1763999761039,0.72559411,2845.0,2844.6,0.2532]
[1763999761243,0.228,2844.7,2844.6,0.001]
[1763999761443,0.1992,2845.1,2844.6,0.001]
[1763999761444,0.6864,2845.1,2844.6,0.001]
[1763999761645,0.002,2845.2,2844.6,0.2532]
[1763999761646,0.228,2845.0,2844.6,0.2532]
[1763999762068,0.002,2845.2,2844.6,0.2532]
[1763999762359,0.002,2845.2,2844.9,0.2522]
[1763999762964,0.002,2845.2,2844.6,0.001]
[1763999763764,0.002,2845.2,2845.1,0.3503]
[1763999764661,0.002,2845.2,2845.1,0.0981]
[1763999764861,0.002,2845.2,2845.1,0.3503]
[1763999765362,0.002,2845.2,2845.1,0.6025]
[1763999765535,0.002,2845.2,2845.1,1.008004]
[1763999766830,0.0012,2845.3,2845.2,3.75134411]
[1763999767164,0.0012,2845.3,2845.2,1.38583881]
[1763999767331,0.0012,2845.3,2845.2,0.909904]
[1763999767532,0.002,2845.6,2845.2,0.909904]
[1763999767732,0.93940846,2847.1,2845.1,0.0981]
[1763999767733,1.08526761,2847.0,2845.6,0.405504]
[1763999767966,0.228,2847.1,2845.6,0.405504]
[1763999768168,0.4872,2847.0,2845.8,0.405504]
[1763999768471,0.1992,2846.9,2845.8,0.405504]
[1763999768673,0.1992,2846.9,2845.9,0.2522]
[1763999768896,0.1992,2846.9,2846.0,0.405504]
[1763999769286,0.1992,2846.9,2846.0,0.2522]
[1763999769599,0.6864,2846.9,2846.2,0.405504]
[1763999769901,0.1992,2846.9,2846.2,0.405504]
[1763999770083,0.1992,2846.9,2846.1,0.405504]
[1763999770459,0.4872,2847.2,2846.2,0.2522]
[1763999770665,0.002,2847.3,2846.3,0.405504]
[1763999770876,0.002,2847.3,2846.5,0.405504]
[1763999771097,0.002,2847.3,2847.2,0.3075]
[1763999771279,0.002,2847.3,2846.7,0.405504]
[1763999772186,0.002,2847.3,2846.7,0.657704]
[1763999772360,0.002,2847.3,2847.2,0.2522]
[1763999772784,0.002,2847.3,2846.9,0.405504]
[1763999773099,0.002,2847.3,2846.6,0.0553]
[1763999773265,0.002,2847.3,2846.7,0.405504]
[1763999774075,0.002,2847.3,2846.7,0.657704]
[1763999774903,0.0012,2847.3,2846.7,0.657704]
[1763999777026,0.4884,2847.3,2846.6,0.0553]
[1763999777393,0.0012,2847.3,2846.6,0.0553]
[1763999777800,0.0012,2847.3,2846.6,0.3075]
[1763999778137,0.0012,2847.3,2846.7,0.405504]
[1763999780205,0.0012,2847.3,2847.2,0.2522]
[1763999781939,0.0012,2847.3,2847.2,0.909904]
[1763999783727,0.0012,2847.3,2847.2,4.789904]
[1763999783941,0.0012,2847.3,2847.2,6.06704792]
[1763999786132,0.0012,2847.3,2847.2,9.35969192]
[1763999786368,0.0012,2847.3,2847.2,8.72959245]
[1763999787066,0.0012,2847.3,2847.2,9.15555345]
[1763999787593,0.0012,2847.3,2847.2,5.69927045]
[1763999787875,0.0012,2847.3,2847.2,2.18704792]
[1763999788227,0.0012,2847.3,2847.2,5.69927045]
[1763999788424,0.0012,2847.3,2847.2,2.18704792]
[1763999788627,0.0012,2847.3,2846.7,3.76501278]
[1763999788926,0.0012,2847.3,2847.2,0.2522]
[1763999789530,0.0012,2847.3,2846.9,7.02163052]
[1763999789531,0.0012,2847.3,2846.6,0.5345]
[1763999789731,0.0012,2847.3,2846.8,0.405504]
[1763999790274,0.0012,2847.3,2846.7,1.83250936]
[1763999790483,0.0012,2847.3,2846.9,0.405504]
[1763999790976,0.0012,2847.3,2846.8,0.405504]
[1763999792261,0.0012,2847.3,2847.2,0.657704]
[1763999793688,0.0012,2847.3,2847.2,0.405504]
[1763999795074,0.4935,2847.3,2846.8,0.405504]
[1763999795250,0.9908,2847.3,2846.8,0.405504]
[1763999795879,0.4973,2847.2,2846.8,0.405504]
[1763999796453,0.0012,2847.3,2846.8,0.405504]
[1763999796852,0.6836,2846.9,2846.6,0.001]
[1763999797089,0.4985,2847.3,2847.2,0.2522]
[1763999797090,0.0012,2847.3,2847.2,0.2522]
[1763999797266,0.0012,2847.3,2847.2,8.40492863]
[1763999797606,0.0012,2847.3,2847.2,9.26812149]
[1763999797793,0.0012,2847.3,2847.2,2.49869097]
[1763999798187,0.0012,2847.3,2847.2,6.0109135]
[1763999798499,0.0012,2847.3,2847.2,2.49869097]
[1763999798799,0.0004,2847.3,2847.2,0.72559411]
[1763999799528,0.4927,2847.3,2847.2,1.13109811]
[1763999800798,0.0004,2847.3,2847.2,1.13109811]
[1763999802517,0.4927,2847.3,2847.2,1.13109811]
[1763999802894,0.0004,2847.3,2847.2,1.13109811]
[1763999804116,0.0004,2847.3,2847.2,1.38329811]
[1763999806891,0.0004,2847.3,2847.2,1.13109811]
[1763999807428,0.4627,2847.3,2847.2,0.405504]
[1763999807726,0.0004,2847.3,2847.2,0.405504]
[1763999807890,0.4627,2847.3,2847.2,0.405504]
[1763999808093,0.9199,2847.3,2846.6,0.72659411]
[1763999808292,0.9199,2847.3,2846.7,1.18032646]
[1763999808531,0.9199,2847.3,2846.6,0.001]
[1763999808532,0.5961,2846.7,2846.6,0.001]
[1763999809030,1.0533,2846.7,2846.6,0.001]
[1763999812245,0.5961,2846.7,2846.6,0.001]
[1763999812547,1.0777,2846.7,2846.6,0.001]
[1763999815741,0.1898,2847.0,2846.6,0.001]
[1763999816529,0.0004,2847.3,2846.6,0.001]
[1763999816734,0.482,2847.3,2846.6,0.001]
[1763999818845,0.0004,2847.3,2847.2,0.2522]
[1763999819047,0.0004,2847.3,2847.2,0.405504]
[1763999820116,0.0004,2847.3,2847.2,0.657704]
[1763999820452,0.0004,2847.3,2847.2,1.77561686]
[1763999820652,0.002,2847.4,2847.3,0.405504]
[1763999820961,0.002,2847.4,2847.3,0.909904]
[1763999821142,0.002,2847.4,2847.3,1.63549811]
[1763999821325,0.002,2847.9,2847.3,1.63549811]
[1763999821326,0.002,2847.9,2847.8,0.72559411]
[1763999821575,0.002,2849.4,2848.3,1.13109811]
[1763999821775,0.4816,2849.0,2848.4,0.227]
[1763999821975,0.4816,2849.0,2847.7,0.0989]
[1763999822309,0.6819,2848.4,2847.8,0.405504]
[1763999822503,0.6811,2848.4,2847.8,0.405504]
[1763999822712,0.4816,2848.6,2847.8,0.405504]
[1763999822895,0.6714,2848.6,2847.8,1.13109811]
[1763999823100,0.6714,2848.6,2847.8,0.405504]
[1763999823714,0.1898,2848.6,2847.8,0.405504]
[1763999823868,0.1898,2848.6,2847.9,1.47819756]
[1763999824313,0.4816,2848.5,2848.0,0.405504]
[1763999824966,0.4921,2848.1,2847.3,0.227]
[1763999825793,0.4921,2848.1,2847.4,0.405504]
[1763999826222,0.9737,2848.1,2847.4,0.405504]
[1763999827820,0.4921,2848.1,2847.4,0.405504]
[1763999828024,0.4921,2848.1,2847.5,0.76541345]
[1763999828229,0.4816,2848.4,2847.5,0.76541345]
[1763999829803,0.4816,2848.4,2847.6,0.405504]
[1763999830116,0.4816,2848.4,2847.4,0.405504]
[1763999830318,0.4816,2848.4,2847.4,1.13109811]
[1763999830488,0.4816,2848.4,2847.6,0.405504]
[1763999830823,0.1898,2848.6,2847.6,3.91716651]
[1763999831130,0.1898,2848.9,2848.0,1.13109811]
[1763999831432,0.1898,2848.9,2848.0,0.632504]
[1763999831433,0.4816,2848.8,2848.0,0.632504]
[1763999832405,0.002,2848.4,2848.0,0.632504]
[1763999833816,0.002,2848.4,2848.0,1.35809811]
[1763999834015,0.002,2848.4,2848.2,0.405504]
[1763999834330,0.002,2848.4,2848.0,0.48]
[1763999834331,0.002,2848.4,2848.3,0.658504]
[1763999834708,0.002,2848.4,2848.3,0.69361266]
[1763999834918,0.002,2848.4,2848.3,0.911504]
[1763999835248,0.002,2848.4,2848.3,0.658504]
[1763999836004,0.002,2849.0,2848.9,0.405504]
[1763999836242,0.002,2849.1,2848.9,5.60662631]
[1763999836542,0.002,2849.1,2849.0,0.658504]
[1763999836956,0.002,2849.1,2849.0,5.01547911]
[1763999837154,0.002,2849.1,2849.0,1.38409811]
[1763999837359,0.002,2849.1,2849.0,1.13109811]
[1763999837646,0.002,2849.1,2849.0,0.405504]
[1763999838252,0.002,2849.1,2848.1,3.51105395]
[1763999838253,0.4941,2849.1,2848.1,3.51105395]
[1763999838436,0.4921,2849.0,2848.3,0.405504]
[1763999838746,0.4921,2849.0,2848.2,0.5781054]
[1763999838933,0.6714,2848.9,2848.3,0.405504]
[1763999839108,0.6714,2848.9,2848.2,0.227]
[1763999839312,0.4816,2848.8,2848.2,0.227]
[1763999839749,0.4816,2848.8,2847.7,4.71713839]
[1763999840055,0.4816,2848.8,2847.8,0.82288369]
[1763999840256,0.4816,2848.8,2847.7,0.227]
[1763999840458,0.4816,2848.8,2847.8,0.405504]
[1763999841058,0.6809,2848.9,2848.0,1.13109811]
[1763999841518,0.4911,2848.8,2848.0,1.13109811]
[1763999842510,0.1898,2848.9,2848.0,1.13109811]
[1763999842746,0.002,2849.1,2848.1,1.11473279]
[1763999843056,0.002,2849.1,2848.3,0.405504]
[1763999843224,0.4931,2849.1,2848.3,0.405504]
[1763999844344,0.6742,2848.4,2848.2,0.227]
[1763999844530,0.4847,2848.3,2847.5,1.23791383]
[1763999844848,0.4847,2848.3,2847.6,1.88141271]
[1763999845049,0.4847,2848.3,2847.7,0.72559411]
[1763999845246,0.4847,2848.3,2847.6,2.60700682]
[1763999845651,0.4847,2848.3,2847.6,1.88141271]
[1763999846025,0.4847,2848.3,2847.6,1.24890871]
[1763999846026,0.4911,2848.2,2847.6,1.24890871]
[1763999846224,0.4903,2848.2,2847.5,0.227]
[1763999847353,0.4903,2848.2,2847.6,0.405504]
[1763999847670,0.1895,2848.5,2847.8,0.405504]
[1763999848231,0.6806,2848.5,2847.8,0.405504]
[1763999848530,0.6806,2848.5,2847.8,0.86173279]
[1763999848744,0.4911,2848.4,2847.6,0.405504]
[1763999849635,0.4911,2848.4,2847.6,0.406504]
[1763999850463,0.1895,2848.5,2847.8,0.405504]
[1763999850675,0.1895,2848.5,2847.7,0.405504]
[1763999850976,0.4911,2848.4,2847.6,0.406504]
[1763999851137,0.4847,2847.7,2847.6,0.406504]
[1763999851495,0.4847,2847.7,2847.6,0.001]
[1763999851669,0.1895,2847.8,2847.6,0.001]
[1763999852134,0.229,2849.0,2847.6,0.001]
[1763999852135,0.002,2849.0,2847.8,0.405504]
[1763999852336,0.002,2849.0,2848.3,0.405504]
[1763999852638,0.002,2849.0,2848.4,0.227]
[1763999853369,0.002,2849.0,2847.9,0.91084346]
[1763999853370,0.1895,2848.9,2847.9,0.91084346]
[1763999853555,0.6806,2848.9,2848.0,0.405504]
[1763999853761,0.4911,2848.8,2848.2,0.405504]
[1763999854583,0.4911,2848.8,2848.1,0.405504]
[1763999854874,0.4911,2848.8,2848.2,0.227]
[1763999856178,0.002,2849.0,2848.5,0.72559411]
[1763999856379,0.002,2849.0,2848.6,0.44060896]
[1763999856577,0.1895,2848.9,2848.6,0.405504]
[1763999856765,0.002,2849.0,2848.6,0.405504]
[1763999857676,0.1895,2851.0,2849.5,0.651304]
[1763999857877,2.51976285,2852.1,2849.4,12.126375]
[1763999857878,0.1895,2851.2,2850.6,1.13109811]
[1763999858083,0.1895,2851.2,2850.6,1.35809811]
[1763999858494,0.1895,2850.7,2850.4,0.227]
[1763999858661,0.1895,2850.7,2850.5,0.405504]
[1763999859272,0.4847,2850.6,2850.3,0.227]
[1763999859586,0.4847,2850.5,2849.8,3.493196]
[1763999859772,0.4847,2850.5,2849.7,0.405504]
[1763999859773,0.4847,2850.5,2850.2,0.405504]
[1763999859976,0.1895,2850.7,2850.2,0.405504]
[1763999860288,0.1895,2851.2,2850.2,4.88538835]
[1763999860649,0.6806,2851.2,2850.2,0.651304]
[1763999860947,0.6806,2851.2,2850.4,0.405504]
[1763999861773,0.6806,2851.2,2850.2,0.405504]
[1763999861973,0.6806,2851.2,2850.4,0.405504]
[1763999862566,0.6806,2851.2,2850.4,1.13109811]
[1763999862770,0.6806,2851.2,2850.6,0.405504]
[1763999862973,0.1895,2851.5,2850.6,0.632504]
[1763999863190,0.1895,2851.5,2850.8,0.405504]
[1763999863395,0.6806,2851.5,2850.8,0.405504]
[1763999863596,0.6806,2851.5,2850.6,0.227]
[1763999863907,0.4911,2851.4,2850.6,0.227]
[1763999865095,0.4911,2851.4,2850.7,0.72559411]
[1763999865668,0.4911,2851.4,2850.8,0.405504]
[1763999865869,0.4911,2851.4,2850.1,0.2458]
[1763999865870,0.6742,2850.9,2849.7,0.2458]
[1763999866069,0.6742,2850.9,2849.7,0.227]
[1763999866070,0.4847,2850.8,2849.7,0.227]
[1763999866308,0.9758,2850.8,2850.0,2.40314]
[1763999866534,0.9758,2850.8,2850.1,0.95259411]
[1763999866676,0.9758,2850.8,2850.2,0.405504]
[1763999867070,0.9758,2850.8,2850.1,0.227]
[1763999867289,0.9758,2850.8,2850.2,0.405504]
[1763999867504,0.9758,2850.8,2850.1,0.227]
[1763999867903,0.1895,2850.9,2850.1,0.227]
[1763999867904,0.1895,2850.9,2850.2,1.13109811]
[1763999868410,0.002,2850.8,2850.2,1.13109811]
[1763999868713,0.002,2850.8,2850.2,4.63961782]
[1763999868906,0.002,2850.8,2850.2,1.13109811]
[1763999869077,0.4869,2850.8,2850.3,0.227]
[1763999869907,0.4861,2850.8,2850.3,0.227]
[1763999870915,0.0012,2850.8,2850.4,1.13109811]
[1763999871134,0.0012,2850.8,2850.6,0.405504]
[1763999873010,0.0012,2850.8,2850.7,1.84969811]
[1763999873420,0.0012,2850.8,2850.7,1.60389811]
[1763999874220,0.002,2851.1,2851.0,0.405504]
[1763999874396,0.002,2851.1,2851.0,4.561102]
[1763999874590,0.002,2851.1,2851.0,5.36015161]
[1763999875281,0.002,2851.1,2851.0,8.86769282]
[1763999876017,0.002,2851.1,2851.0,9.23731493]
[1763999877627,0.002,2851.4,2851.0,9.23731493]
[1763999877628,0.002,2851.4,2851.2,0.405504]
[1763999877841,0.002,2851.4,2851.0,12.69857135]
[1763999877842,0.002,2851.4,2851.3,9.78620768]
[1763999878044,0.002,2851.4,2851.3,9.24102787]
[1763999878651,0.002,2851.4,2851.3,11.28655787]
[1763999878947,0.002,2851.4,2851.3,11.49118387]
[1763999879097,0.002,2851.4,2851.3,11.73698387]
[1763999879301,0.002,2851.4,2851.3,12.91068226]
[1763999879549,0.4855,2852.5,2851.4,0.405504]
[1763999879748,0.4855,2852.5,2851.7,0.405504]
[1763999879913,0.4855,2852.5,2851.8,0.227]
[1763999880304,0.4875,2852.3,2851.8,0.227]
[1763999880749,0.4875,2852.3,2851.4,0.2458]
[1763999880750,0.6628,2851.9,2851.0,0.79904961]
[1763999880908,0.4718,2851.8,2851.4,1.35809811]
[1763999881105,0.191,2851.9,2851.6,0.405504]
[1763999881305,0.191,2851.9,2851.4,0.95259411]
[1763999881547,0.191,2851.9,2851.5,0.405504]
[1763999881707,0.191,2851.9,2851.5,1.42239663]
[1763999882429,0.6765,2851.9,2851.5,1.42239663]
[1763999882744,0.6765,2851.9,2851.5,0.405504]
[1763999882947,0.4855,2851.8,2851.5,0.405504]
[1763999883829,0.191,2851.9,2851.5,0.405504]
[1763999884008,0.6765,2851.9,2851.5,0.405504]
[1763999884345,0.4718,2851.6,2851.4,0.405504]
[1763999884639,0.4718,2851.5,2851.4,0.632504]
[1763999884944,0.4718,2851.5,2850.5,0.1509]
[1763999885109,0.191,2851.9,2850.3,7.48622976]
[1763999885110,0.4718,2851.0,2850.3,10.99460825]
[1763999885307,0.4718,2851.0,2850.1,2.453787]
[1763999885512,0.6765,2850.9,2850.2,0.227]
[1763999886031,0.6765,2850.9,2850.2,0.95259411]
[1763999886205,0.6765,2850.9,2850.2,3.73551052]
[1763999886403,0.191,2851.0,2850.3,9.00979846]
[1763999886630,0.6765,2851.0,2850.4,0.405504]
[1763999886939,0.191,2850.9,2850.4,0.405504]
[1763999887342,0.6765,2850.9,2850.3,8.21282387]
[1763999887639,0.6765,2850.9,2850.3,0.228]
[1763999887843,0.4855,2850.8,2850.3,0.228]
[1763999889125,0.4718,2850.4,2850.3,0.633504]
[1763999889646,0.4855,2850.8,2850.3,0.879304]
[1763999889842,0.191,2850.9,2850.3,1.39065379]
[1763999890149,0.6765,2850.9,2850.3,1.14485379]
[1763999890310,0.6765,2850.9,2850.3,0.633504]
[1763999890635,0.4855,2850.8,2850.3,0.633504]
[1763999892527,0.4718,2850.4,2850.3,0.228]
[1763999893743,0.471,2850.4,2850.3,0.228]
[1763999894257,0.4855,2850.6,2850.3,0.228]
[1763999894629,0.6765,2850.9,2850.3,7.22954112]
[1763999895050,0.6765,2850.9,2850.3,8.02505464]
[1763999896420,0.191,2850.9,2850.4,0.405504]
[1763999896946,0.6765,2850.9,2850.4,0.405504]
[1763999897330,0.4855,2850.8,2850.4,0.405504]
[1763999898852,0.4718,2850.5,2850.4,0.405504]
[1763999899060,0.4718,2850.5,2850.3,0.001]
[1763999899215,0.4718,2850.4,2850.3,0.001]
[1763999899418,0.191,2850.9,2850.3,0.001]
[1763999899651,0.6788,2850.9,2850.3,0.70125411]
[1763999900562,0.6788,2850.9,2850.5,7.00154112]
[1763999901376,0.4878,2850.8,2850.5,7.00154112]
[1763999901686,0.193,2851.9,2850.5,7.00154112]
[1763999901855,0.6861,2851.3,2850.5,7.79452064]
[1763999902192,0.6861,2851.3,2850.5,0.79297952]
[1763999902193,0.492,2850.6,2850.5,0.79297952]
[1763999902374,0.492,2850.6,2850.4,0.632504]
[1763999902566,0.492,2850.5,2850.4,0.632504]
[1763999902754,0.4878,2850.6,2850.4,0.632504]
[1763999903951,0.4878,2850.9,2850.4,0.632504]
[1763999905487,0.492,2850.5,2850.4,0.632504]
[1763999905691,0.492,2850.5,2850.4,1.46856792]
[1763999906186,0.4878,2851.1,2850.5,0.405504]
[1763999906384,0.002,2850.9,2850.7,1.13109811]
[1763999907090,0.002,2850.9,2850.8,3.395064]
[1763999907285,0.002,2850.9,2850.8,2.34211787]
[1763999907486,0.002,2850.9,2850.8,2.09551787]
[1763999908080,0.002,2850.9,2850.8,2.34211787]
[1763999908970,0.002,2850.9,2850.8,4.79712087]